fUSD/lending_fUSD_20240213
["ID","MTS","AMOUNT","RATE_DAILY","PERIOD"]
[313896728,1707782514651,150.0,0.00021443,2]
[313896729,1707782521276,188.05,0.0002217,2]
[313896730,1707782612160,150.0,0.00022129,2]
[313896731,1707782660824,2000.0,0.00022109,2]
[313896732,1707782671063,272.23636461,0.00021982,2]
[313896733,1707782682298,1030.35883244,0.00022109,2]
[313896734,1707782689883,2488.34972956,0.00021758,2]
[313896735,1707782691384,1043.3497894,0.00020188,2]
[313896736,1707782694704,850.15341176,0.00022109,2]
[313896737,1707782695052,272.23636461,0.00021982,2]
[313896738,1707782699068,200.0,0.00021986,2]
[313896739,1707782706459,399.11,0.00022049,2]
[313896740,1707782708071,1704.07591014,0.00021758,2]
[313896741,1707782709457,1036.12415759,0.00020185,2]
[313896742,1707782712696,850.15341176,0.00022109,2]
[313896743,1707782713055,258.12869191,0.00021978,2]
[313896744,1707782715967,170.23,0.00017588,2]
[313896745,1707782729063,286.06529151,0.00021978,2]
[313896746,1707782732525,23900.0,0.00021935,2]
[313896747,1707782732690,780.99239518,0.0002,2]
[313896748,1707782758005,157.95,0.00021882,2]
[313896749,1707782775084,213.83,0.0002183,2]
[313896750,1707782786447,446.31,0.00019989,2]
[313896751,1707782786666,446.31,0.00022253,2]
[313896752,1707782806002,563.81510033,0.00019956,2]
[313896753,1707782833407,1043.09191383,0.00020179,2]
[313896754,1707782834576,858.66470521,0.00021882,2]
[313896755,1707782863406,1005.86579131,0.00020179,2]
[313896756,1707782864005,561.86622075,0.00019955,2]
[313896757,1707782865022,500.0,0.00019956,2]
[313896758,1707782868125,534.42411814,0.00019956,2]
[313896759,1707782868323,1025.34814346,0.0002,2]
[313896760,1707782869883,1101.04178806,0.0002,2]
[313896761,1707782871957,6114.15975207,0.00019956,2]
[313896762,1707782876440,2705.0,0.00021808,2]
[313896763,1707782884213,200.0,0.0002189,2]
[313896764,1707782884587,859.4223849,0.00019956,2]
[313896765,1707782887055,500.0,0.00019956,2]
[313896766,1707782893948,6114.15975207,0.00019956,2]
[313896767,1707782895706,1101.04178806,0.0002,2]
[313896774,1707782902582,857.90702552,0.00019956,2]
[313896775,1707782904124,534.63116618,0.00019956,2]
[313896776,1707782911943,6063.83589471,0.00019956,2]
[313896777,1707782916218,809.5851531,0.0002,2]
[313896778,1707782917026,500.0,0.00019956,2]
[313896779,1707782917405,19040.44071311,0.00019956,2]
[313896780,1707782921825,1262.8216172,0.00019955,2]
[313896781,1707782922003,563.27216487,0.00019948,2]
[313896789,1707782922583,858.66470521,0.00019956,2]
[313896790,1707782923526,2334.16825426,0.0002,2]
[313896791,1707782924125,534.63116618,0.00019956,2]
[313896792,1707782924336,2192.996702,0.0002,2]
[313896793,1707782927413,1043.3497894,0.00020173,2]
[313896794,1707782935421,19040.44071311,0.00019956,2]
[313896795,1707782937522,2334.16825426,0.0002,2]
[313896796,1707782938225,809.90426207,0.0002,2]
[313896797,1707782939241,500.0,0.00019956,2]
[313896798,1707782940009,563.27216487,0.00019941,2]
[313896799,1707782942337,2192.996702,0.0002,2]
[313896800,1707782944138,535.66883484,0.00019956,2]
[313896801,1707782944597,858.66470521,0.00019956,2]
[313896802,1707782946338,1028.25413819,0.0002,2]
[313896806,1707782947412,1043.3497894,0.00020165,2]
[313896807,1707782947523,197.47,0.00022158,2]
[313896808,1707782947706,197.47,0.00022219,2]
[313896809,1707782947938,197.47,0.00022279,2]
[313896810,1707782948170,197.47,0.0002234,2]
[313896811,1707782948773,682.93,0.00021993,2]
[313896812,1707782949952,6109.26214798,0.00019956,2]
[313896813,1707782956577,5212.35686383,0.00019941,2]
[313896814,1707782957415,19040.44071311,0.00019941,2]
[313896815,1707782957493,2334.16825426,0.0002,2]
[313896816,1707782959133,270.82946089,0.00020165,2]
[313896817,1707782960324,1194.27446113,0.0002,2]
[313896818,1707782966005,563.27216487,0.00019941,2]
[313896819,1707782966122,535.66883484,0.00019941,2]
[313896820,1707782966431,6109.26214798,0.00019941,2]
[313896821,1707782968945,250.0,0.00021918,2]
[313896822,1707782969406,1043.3497894,0.00020165,2]
[313896823,1707782970399,1028.25413819,0.0002,2]
[313896826,1707782972593,860.02123098,0.00019941,2]
[313896827,1707782973418,19047.95231035,0.00019941,2]
[313896828,1707782976344,208.20948336,0.00022305,2]
[313896829,1707782976568,5216.77365222,0.00019941,2]
[313896830,1707782977719,1103.17467381,0.0002,2]
[313896831,1707782978855,1660.72395764,0.0002,2]
[313896832,1707782979060,362.36944005,0.00019941,2]
[313896833,1707782979524,2334.16825426,0.0002,2]
[313896834,1707782979725,2486.23780541,0.00021734,2]
[313896835,1707782984133,531.52058866,0.00019941,2]
[313896836,1707782985413,1043.3497894,0.00020165,2]
[313896837,1707782986944,155.0,0.00019941,2]
[313896838,1707782990236,439.5286448,0.00019941,2]
[313896839,1707782990326,1028.25413819,0.0002,2]
[313896840,1707782991983,6109.26214798,0.00019941,2]
[313896841,1707782992161,157.42492962,0.00019941,2]
[313896842,1707782994064,563.27216487,0.00020107,2]
[313896843,1707782994568,5216.77365222,0.00019941,2]
[313896844,1707782994606,948.1774915,0.00019941,2]
[313896845,1707782995430,19047.95231035,0.00019941,2]
[313896846,1707782995699,2486.23780541,0.00021734,2]
[313896849,1707782997573,306.65995784,0.00020333,2]
[313896850,1707782997730,1103.17467381,0.0002,2]
[313896851,1707782998664,3139.99367387,0.00021462,2]
[313896852,1707782999056,362.36944005,0.00019941,2]
[313896853,1707783002287,2334.16825426,0.0002,2]
[313896854,1707783002414,534.42411814,0.00019941,2]
[313896855,1707783008492,155.85105563,0.00019941,2]
[313896856,1707783009424,1043.3497894,0.00020163,2]
[313896857,1707783010677,1459.0391,0.00022309,2]
[313896858,1707783012273,191.23,0.00021618,2]
[313896859,1707783013718,1103.17467381,0.0002,2]
[313896860,1707783013782,5216.77365222,0.00019941,2]
[313896861,1707783014367,1028.25413819,0.0002,2]
[313896862,1707783014846,157.42492962,0.00019941,2]
[313896863,1707783015425,19047.95231035,0.00019941,2]
[313896864,1707783015968,6109.26214798,0.00019941,2]
[313896865,1707783016016,3139.99367387,0.00021283,2]
[313896866,1707783018007,245.36766456,0.00019939,2]
[313896867,1707783021519,2334.16825426,0.0002,2]
[313896868,1707783023713,1206.02274335,0.00021731,2]
[313896869,1707783024216,909.41463107,0.0002,2]
[313896870,1707783024285,8950.419333,0.00022283,2]
[313896871,1707783026425,284.21796562,0.0002,2]
[313896872,1707783029723,1103.17467381,0.0002,2]
[313896873,1707783030567,5199.10649866,0.00019941,2]
[313896874,1707783031425,665.08789942,0.00020163,2]
[313896883,1707783031647,-372.04136223,0.00022394,2]
[313896884,1707783031708,-364.2315941,0.00022394,2]
[313896885,1707783031717,-155.0,0.00022395,2]
[313896886,1707783031727,-137.21465269,0.00022396,2]
[313896887,1707783031739,-265.46057844,0.00022396,2]
[313896888,1707783031748,-3015.02381583,0.00022396,2]
[313896889,1707783031760,-30.86390809,0.00022396,2]
[313896890,1707783031769,-669.25408934,0.00022397,2]
[313896891,1707783031783,-377.94214143,0.00022397,2]
[313896892,1707783031792,-234.50423555,0.00022398,2]
[313896893,1707783031802,-154.50657205,0.00022398,2]
[313896894,1707783031815,-501.6156142,0.00022398,2]
[313896895,1707783031845,-1206.0043746,0.00022398,2]
[313896896,1707783031854,-70.5332117,0.00022399,2]
[313896897,1707783031867,-450.0,0.00022399,2]
[313896898,1707783031879,-255.00253194,0.00022399,2]
[313896899,1707783031889,-1939.55402861,0.000224,2]
[313896900,1707783031910,-3533.62801693,0.000224,2]
[313896901,1707783031920,-197.47,0.00022401,2]
[313896902,1707783031929,-1443.0,0.00022403,2]
[313896903,1707783031939,-191.72719769,0.00022404,2]
[313896904,1707783031948,-43229.83617615,0.00022405,2]
[313896905,1707783031958,-409.08753031,0.00022406,2]
[313896906,1707783031967,-150.0,0.00022407,2]
[313896907,1707783031976,-1030.38591441,0.0002241,2]
[313896908,1707783031985,-3014.08,0.00022419,2]
[313896909,1707783031994,-757.92,0.00022422,2]
[313896910,1707783032004,-530.85903032,0.00022461,2]
[313896911,1707783032013,-6462.85,0.00022461,2]
[313896912,1707783032022,-197.47,0.00022462,2]
[313896913,1707783032031,-197.47,0.00022523,2]
[313896914,1707783032041,-5110.57532492,0.00022564,2]
[313896915,1707783032051,-274.76884876,0.00022564,2]
[313896916,1707783032061,-751.99,0.00022564,2]
[313896917,1707783032071,-758.36,0.00022564,2]
[313896918,1707783032080,-197.47,0.00022583,2]
[313896919,1707783032091,-958.96964012,0.00022592,2]
[313896920,1707783032101,-1066.04559895,0.00022593,2]
[313896921,1707783032111,-1440.7212,0.00022594,2]
[313896922,1707783032121,-12261.2085,0.00022594,2]
[313896923,1707783032130,-879.1899,0.00022594,2]
[313896924,1707783032139,-3629.6226,0.00022594,2]
[313896925,1707783032149,-1133.585491,0.00022595,2]
[313896926,1707783032159,-197.47,0.00022644,2]
[313896927,1707783032168,-311.05,0.00022692,2]
[313896928,1707783032178,-108174.10998899,0.00022694,2]
[313896929,1707783032190,-6857.37474907,0.00022694,2]
[313896931,1707783032202,-911.68,0.00022694,2]
[313896935,1707783032224,-351.10664586,0.00022694,2]
[313896941,1707783032290,-1061.96851172,0.00022694,2]
[313896943,1707783032302,-34832.14500872,0.00022694,2]
[313896950,1707783032355,1028.25413819,0.0002,2]
[313896970,1707783034831,598.24,0.00021907,2]
[313896972,1707783037537,2413.76376277,0.0002,2]
[313896973,1707783037696,-294.36661831,0.00022395,2]
[313896974,1707783037707,-785.2873475,0.00022395,2]
[313896975,1707783037719,-2447.79457723,0.00022395,2]
[313897020,1707783051146,-117.47416836,0.00022395,2]
[313897021,1707783051156,-134.18810592,0.00022694,2]
[313897022,1707783051170,-932.0,0.00022694,2]
[313897023,1707783051200,-943.76718669,0.00022694,2]
[313897024,1707783051261,-41683.39510303,0.00022694,2]
[313897025,1707783051272,-10441.538,0.00022695,2]
[313897026,1707783051282,-4938.7382,0.00022695,2]
[313897027,1707783051293,-197.47,0.00022705,2]
[313897028,1707783051304,-197.47,0.00022766,2]
[313897029,1707783051316,-162.73494807,0.00022792,2]
[313897030,1707783051328,-229.23938363,0.00022792,2]
[313897031,1707783051339,-157.02308234,0.00022792,2]
[313897032,1707783051350,-269.84696552,0.00022792,2]
[313897033,1707783051362,-155.35967394,0.00022792,2]
[313897034,1707783051372,-155.0,0.00022792,2]
[313897035,1707783051383,-331.21304537,0.00022792,2]
[313897036,1707783051394,-420.87327352,0.00022792,2]
[313897037,1707783051405,-482.60085418,0.00022792,2]
[313897038,1707783051416,-156.8982265,0.00022792,2]
[313897039,1707783051427,-3677.49703489,0.00022792,2]
[313897040,1707783051438,-10344.1221815,0.00022792,2]
[313897041,1707783051453,-23571.13707977,0.00022792,2]
[313897042,1707783051463,-174.13774898,0.00022792,2]
[313897043,1707783051474,-635.10659731,0.00022792,2]
[313897044,1707783051485,-941.06976362,0.00022793,2]
[313897045,1707783051496,-2218.19327361,0.00022793,2]
[313897046,1707783051506,-284.83645536,0.00022794,2]
[313897047,1707783051518,-155.0,0.00022794,2]
[313897048,1707783051531,-284.10453816,0.00022794,2]
[313897049,1707783051543,-157.1305501,0.00022794,2]
[313897050,1707783051554,-10241.5315609,0.00022794,2]
[313897051,1707783051567,-413.39356249,0.00022794,2]
[313897052,1707783051578,-362.66839239,0.00022794,2]
[313897053,1707783051589,-191.59688623,0.00022794,2]
[313897054,1707783051601,-3152.30386731,0.00022794,2]
[313897055,1707783051613,-155.26565637,0.00022794,2]
[313897056,1707783051624,-155.38408579,0.00022794,2]
[313897057,1707783051635,-301.746334,0.00022794,2]
[313897058,1707783051645,-155.0,0.00022794,2]
[313897059,1707783051656,-208.50660061,0.00022794,2]
[313897060,1707783051667,-220.3694197,0.00022794,2]
[313897061,1707783051677,-768.69623108,0.00022794,2]
[313897062,1707783051689,-342.81727514,0.00022794,2]
[313897063,1707783051699,-260.57088106,0.00022794,2]
[313897064,1707783051710,-3651.70195557,0.00022795,5]
[313897065,1707783051720,-283.391047,0.00022795,2]
[313897066,1707783051731,-309.59172365,0.00022795,2]
[313897067,1707783051745,-3416.71473678,0.00022795,2]
[313897068,1707783051760,-670.84404934,0.00022795,2]
[313897069,1707783051772,-155.52675014,0.00022795,2]
[313897070,1707783051782,-158.67878115,0.00022795,2]
[313897071,1707783051793,-218.74166549,0.00022795,2]
[313897072,1707783051802,-155.36549863,0.00022795,2]
[313897073,1707783051812,-242.88266541,0.00022795,2]
[313897074,1707783052374,-1178.76017596,0.00022795,2]
[313897075,1707783052384,-245.77591593,0.00022795,2]
[313897076,1707783052393,-203.76527707,0.00022795,2]
[313897077,1707783052402,-155.0,0.00022795,2]
[313897078,1707783052411,-1644.7477831,0.00022796,2]
[313897079,1707783052424,-1442.55661275,0.00022796,2]
[313897080,1707783052437,-1633.70560824,0.00022796,2]
[313897081,1707783052446,-4482.49008959,0.00022796,2]
[313897082,1707783052458,-13081.74656207,0.00022796,2]
[313897083,1707783052470,-2462.11836977,0.00022796,2]
[313897084,1707783052481,-387.96698004,0.00022796,2]
[313897085,1707783052506,-1853.09131053,0.00022796,2]
[313897086,1707783052518,-1880.49713619,0.00022796,2]
[313897087,1707783052529,-1221.3394,0.00022798,2]
[313897088,1707783052538,-197.47,0.00022826,2]
[313897089,1707783052547,-197.47,0.00022887,2]
[313897090,1707783052557,-197.47,0.00022948,2]
[313897091,1707783052567,-197.47,0.00023009,2]
[313897092,1707783052576,-197.47,0.00023069,2]
[313897093,1707783052584,-197.47,0.0002313,2]
[313897094,1707783052593,-197.47,0.00023191,2]
[313897095,1707783052604,-197.47,0.00023252,2]
[313897096,1707783052614,-188.05,0.00023278,2]
[313897097,1707783052623,-159.40340155,0.00023313,2]
[313897098,1707783052635,-38.06659845,0.00023313,2]
[313897099,1707783052644,-598.24,0.00023551,2]
[313897100,1707783052653,-200.0,0.00023685,2]
[313897101,1707783052662,-623.68545473,0.00023999,2]
[313897102,1707783052671,-29.97982173,0.00023999,2]
[313897103,1707783052687,-125.46981324,0.00023999,2]
[313897104,1707783052697,-517.78567072,0.00024,2]
[313897105,1707783052706,-202.03248539,0.00024,2]
[313897106,1707783052715,-156.67379422,0.000243,2]
[313897107,1707783052725,-207.0,0.00024344,2]
[313897108,1707783052734,-810.88,0.00024384,2]
[313897109,1707783052744,-1900.01,0.00024384,2]
[313897110,1707783052754,-188.05,0.00024387,2]
[313897111,1707783052763,-446.31,0.00024517,2]
[313897112,1707783052772,-210.0,0.00024648,2]
[313897113,1707783052781,-203.74910258,0.00024658,2]
[313897114,1707783052792,-46.25089742,0.00024658,2]
[313897115,1707783052802,-500.0,0.000247,2]
[313897116,1707783052811,-1133.58549094,0.00024751,2]
[313897117,1707783052820,-164.90009868,0.0002479,2]
[313897118,1707783052829,-164.90009868,0.0002479,2]
[313897119,1707783052838,-381.2912522,0.00024799,2]
[313897120,1707783052847,-381.2912522,0.00024799,2]
[313897121,1707783052858,-863.08945319,0.0002509,2]
[313897122,1707783052867,-800.0,0.00025122,2]
[313897123,1707783052875,-598.24,0.00025194,2]
[313897124,1707783052887,-188.05,0.00025495,2]
[313897125,1707783052896,-324.62770337,0.0002565,2]
[313897126,1707783052905,-381.2912522,0.00025949,2]
[313897127,1707783052914,-164.90009868,0.00026368,2]
[313897128,1707783052923,-170.23,0.00026383,2]
[313897129,1707783052933,-207.0,0.00026572,5]
[313897130,1707783052942,-3033.25591947,0.000266,2]
[313897131,1707783052964,-161.74408053,0.000266,2]
[313897132,1707783052973,-188.05,0.00026604,2]
[313897133,1707783052982,-200.0,0.00026646,2]
[313897134,1707783052991,-161.54034317,0.00026781,2]
[313897135,1707783053005,-284.76965683,0.00026781,2]
[313897136,1707783053014,-598.24,0.00026838,2]
[313897137,1707783053024,-245.2056374,0.00026907,3]
[313897138,1707783053039,-549.00530658,0.00026907,3]
[313897139,1707783053055,-339.37454696,0.00026907,3]
[313897140,1707783053065,-245.1785439,0.00026998,2]
[313897141,1707783053075,-301.83771464,0.00026999,2]
[313897142,1707783053084,-647.61053358,0.00026999,2]
[313897143,1707783053093,-200.0,0.00027,2]
[313897144,1707783053103,-49.77766626,0.00027,2]
[313897145,1707783053115,-251.70478275,0.00027,2]
[313897146,1707783053124,-198.80003873,0.00027,2]
[313897147,1707783053133,-539.8606,0.00027,2]
[313897148,1707783053143,-3425.40174272,0.00027342,2]
[313897149,1707783053152,-1226.240241,0.00027343,2]
[313897150,1707783053162,-357.23370022,0.00027343,2]
[313897151,1707783053174,-525.18039775,0.00027343,2]
[313897152,1707783053186,-273.30169193,0.00027343,2]
[313897153,1707783053196,-155.0,0.00027343,2]
[313897154,1707783053205,-167.01,0.00027369,2]
[313897155,1707783053214,-500.0,0.000274,2]
[313897156,1707783053223,-983.08588468,0.00027415,2]
[313897157,1707783053236,-3673.18108897,0.00027415,2]
[313897158,1707783053245,-381.2912522,0.00027626,2]
[313897159,1707783053255,-550.61358106,0.00028,2]
[313897160,1707783053264,-164.90009868,0.00028255,2]
[313897161,1707783053274,-800.0,0.00028262,2]
[313897162,1707783053283,-598.24,0.00028482,2]
[313897163,1707783053293,-207.0,0.00028801,9]
[313897164,1707783053303,-150.1,0.00029,2]
[313897165,1707783053312,-446.31,0.00029045,2]
[313897166,1707783053321,-1133.58549094,0.00029063,4]
[313897167,1707783053331,-381.2912522,0.00029303,2]
[313897168,1707783053340,-200.0,0.00029607,2]
[313897169,1707783053349,-200.0,0.000298,10]
[313897170,1707783053359,-506.05714573,0.000298,2]
[313897171,1707783053369,-242.65518275,0.000298,2]
[313897172,1707783053378,-216.33126608,0.0002989,2]
[313897173,1707783053387,-1426.92087624,0.000299,2]
[313897174,1707783053396,-14599.97326515,0.000299,2]
[313897175,1707783053408,-737.80331706,0.000299,2]
[313897176,1707783053422,-741.27723955,0.000299,2]
[313897177,1707783053435,-420.8888349,0.000299,2]
[313897178,1707783053450,-313.89851893,0.000299,2]
[313897179,1707783053837,-303.84007919,0.000299,2]
[313897180,1707783053979,-750.40272192,0.00022693,2]
[313897181,1707783053989,-172.24605798,0.00022693,2]
[313897182,1707783053998,-45236.47455038,0.000299,2]
[313897183,1707783054010,-324.31496365,0.000299,2]
[313897184,1707783054021,-559.52837906,0.000299,2]
[313897185,1707783054033,-798.46999937,0.000299,2]
[313897186,1707783054046,-958.47451001,0.000299,2]
[313897187,1707783054058,-4505.56053191,0.000299,2]
[313897188,1707783054079,-2238.65366355,0.000299,2]
[313897189,1707783054090,-3424.45228262,0.000299,2]
[313897190,1707783054102,-16672.96539049,0.000299,2]
[313897191,1707783054117,-1642.51693484,0.000299,2]
[313897192,1707783054139,-157.34448278,0.00022693,2]
[313897193,1707783054149,-185.18854641,0.000299,2]
[313897194,1707783054161,-402.89105763,0.000299,2]
[313897195,1707783054172,-697.47598461,0.000299,2]
[313897196,1707783054185,-943.75244965,0.000299,2]
[313897197,1707783054196,-660.87471969,0.000299,2]
[313897198,1707783054381,909.41463107,0.0002,2]
[313897199,1707783054451,-356.8393713,0.00022693,2]
[313897200,1707783054461,-208.07992085,0.00022693,2]
[313897201,1707783054471,-161.29335573,0.00022693,2]
[313897202,1707783054480,-679.01464799,0.00028,6]
[313897203,1707783054505,-14.21900302,0.00028,6]
[313897204,1707783054514,-392.9387499,0.000299,6]
[313897205,1707783054525,-281817.464978,0.000299,2]
[313897206,1707783054546,-1235.29000001,0.000299,2]
[313897207,1707783054561,-4908.67139743,0.000299,2]
[313897208,1707783054573,-2340.63815174,0.000299,2]
[313897209,1707783054584,-92183.67335417,0.000299,2]
[313897210,1707783054594,-500.0,0.000299,10]
[313897211,1707783054604,-165.38293317,0.000299,2]
[313897212,1707783054614,-2500.13,0.0003,4]
[313897213,1707783054624,-5647.21143286,0.0003,2]
[313897214,1707783054635,-695.00398382,0.0003,2]
[313897215,1707783054646,-1604.83648142,0.0003,4]
[313897216,1707783054657,-155.0,0.0003,2]
[313897217,1707783054669,-11810.48167495,0.0003,4]
[313897218,1707783054678,-16638.45652666,0.0003,3]
[313897219,1707783054688,-195.61104143,0.0003,4]
[313897220,1707783054697,-2726.19020557,0.0003,4]
[313897221,1707783054707,-153.94,0.0003,2]
[313897222,1707783054717,-19827.0,0.00030007,2]
[313897223,1707783054727,-5086.308,0.00030007,2]
[313897224,1707783054737,-731.022,0.00030007,2]
[313897225,1707783054747,-2287.0,0.00030007,2]
[313897226,1707783054756,-1036.0,0.00030007,2]
[313897227,1707783054765,-598.24,0.00030126,2]
[313897228,1707783054775,-155.1,0.00030137,2]
[313897229,1707783054785,-164.90009868,0.00030141,2]
[313897230,1707783054798,-168.51,0.00030218,2]
[313897231,1707783054807,-177.24,0.0003037,2]
[313897232,1707783054817,-21701.0,0.00030492,2]
[313897233,1707783054826,-242.65518273,0.00030613,2]
[313897234,1707783054837,-306.51249639,0.000308,14]
[313897235,1707783054847,-500.0,0.000308,2]
[313897236,1707783054857,-514.11,0.000308,7]
[313897237,1707783054867,-154.19383368,0.000308,2]
[313897238,1707783054877,-150.0,0.000308,2]
[313897239,1707783054886,-399.11,0.00030869,2]
[313897240,1707783054895,-150.0,0.0003088,2]
[313897241,1707783054905,-700.0,0.000309,11]
[313897242,1707783054914,-177.24,0.00030918,2]
[313897243,1707783054923,-151.0,0.00030952,120]
[313897244,1707783054933,-800.0,0.00030959,2]
[313897245,1707783054943,-381.2912522,0.00030979,2]
[313897246,1707783054953,-3446.01129655,0.00031,5]
[313897247,1707783054962,-299.96147713,0.00031,4]
[313897248,1707783054971,-150.0,0.00031003,2]
[313897249,1707783054981,-150.0,0.00031006,2]
[313897250,1707783054990,-150.0,0.0003101,2]
[313897251,1707783054999,-150.0,0.00031017,2]
[313897252,1707783055009,-207.0,0.00031029,12]
[313897253,1707783055019,-841.0,0.0003106,2]
[313897254,1707783055028,-2832.0,0.0003106,2]
[313897255,1707783055037,-952.0,0.0003106,2]
[313897256,1707783055047,-707.0,0.0003106,2]
[313897257,1707783055057,-1253.0,0.0003106,2]
[313897258,1707783055067,-1231.0,0.0003106,2]
[313897259,1707783055079,-216.0,0.0003106,2]
[313897260,1707783055089,-429.0,0.0003106,2]
[313897261,1707783055098,-736.594,0.0003106,2]
[313897262,1707783055107,-1138.0,0.0003106,2]
[313897263,1707783055118,-859.0,0.0003106,2]
[313897264,1707783055127,-207.539,0.0003106,2]
[313897265,1707783055136,-343.0,0.0003106,2]
[313897266,1707783055146,-150.0,0.0003106,2]
[313897267,1707783055155,-150.0,0.00031119,2]
[313897268,1707783055165,-150.0,0.00031125,2]
[313897269,1707783055175,-500.0,0.0003113,2]
[313897270,1707783055185,-150.0,0.00031159,2]
[313897271,1707783055194,-150.0,0.00031175,2]
[313897272,1707783055203,-1000.0,0.000312,2]
[313897273,1707783055213,-1000.0,0.000312,3]
[313897274,1707783055222,-150.0,0.00031209,2]
[313897275,1707783055231,-1133.58549094,0.00031219,5]
[313897276,1707783055240,-150.0,0.00031225,2]
[313897277,1707783055250,-178.02648423,0.0003127,2]
[313897278,1707783055260,-150.0,0.00031287,2]
[313897279,1707783055269,-446.31,0.00031308,2]
[313897280,1707783055279,-150.0,0.00031336,2]
[313897281,1707783055289,-150.0,0.00031347,2]
[313897282,1707783055485,-367.89764222,0.00031367,2]
[313897283,1707783055495,-100000.0,0.0003137,2]
[313897284,1707783055505,-245000.0,0.0003137,2]
[313897285,1707783055515,-150.0,0.00031384,2]
[313897286,1707783055525,-800.0,0.00031403,2]
[313897287,1707783055536,-150.0,0.00031411,2]
[313897288,1707783055545,-242.65518273,0.00031425,2]
[313897289,1707783055554,-150.0,0.00031426,2]
[313897290,1707783055563,-150.0,0.00031442,2]
[313897291,1707783055574,-914.46,0.00031445,2]
[313897292,1707783055583,-914.46,0.00031445,2]
[313897293,1707783055593,-914.46,0.00031445,2]
[313897294,1707783055604,-157.02,0.00031445,2]
[313897295,1707783055614,-150.0,0.00031449,2]
[313897296,1707783055623,-354.16,0.00031466,2]
[313897297,1707783055632,-235.3443745,0.00031468,4]
[313897298,1707783055642,-2146.32520386,0.00031468,4]
[313897299,1707783055652,-2933.37692121,0.00031468,2]
[313897300,1707783055661,-323.00562077,0.00031468,4]
[313897301,1707783055671,-158.11188194,0.00031468,4]
[313897302,1707783055680,-280.05887207,0.00031468,4]
[313897303,1707783055690,-164.09921097,0.00031468,4]
[313897304,1707783055699,-231.04855052,0.00031469,4]
[313897305,1707783055708,-15571.91952473,0.00031469,4]
[313897306,1707783055717,-229001.76464706,0.00031469,2]
[313897307,1707783055726,-137152.38156272,0.0003147,7]
[313897308,1707783055737,-2000.0,0.0003147,2]
[313897309,1707783055746,-200.0,0.0003147,2]
[313897310,1707783055755,-2000.0,0.0003147,2]
[313897311,1707783055765,-200.0,0.0003147,2]
[313897312,1707783055774,-2000.0,0.0003147,2]
[313897313,1707783055783,-200.0,0.0003147,2]
[313897314,1707783055793,-150.0,0.00031474,2]
[313897315,1707783055802,-150.0,0.00031485,2]
[313897316,1707783055811,-402.65,0.00031498,2]
[313897317,1707783055820,-914.46,0.00031499,2]
[313897318,1707783055830,-845.43,0.00031499,2]
[313897319,1707783055841,-914.46,0.00031499,2]
[313897320,1707783055853,-404.85,0.00031499,2]
[313897321,1707783055862,-404.85,0.00031499,2]
[313897322,1707783055871,-914.46,0.00031499,2]
[313897323,1707783055881,-914.46,0.00031499,2]
[313897324,1707783055890,-914.46,0.00031499,2]
[313897325,1707783055900,-914.46,0.00031499,2]
[313897326,1707783055909,-914.46,0.00031499,2]
[313897327,1707783055918,-914.46,0.00031499,2]
[313897328,1707783055928,-914.46,0.00031499,2]
[313897329,1707783055937,-914.46,0.00031499,2]
[313897330,1707783055946,-250.0,0.000315,2]
[313897331,1707783055955,-150.0,0.00031505,2]
[313897332,1707783055965,-500.0,0.0003152,2]
[313897333,1707783055974,-150.0,0.00031524,2]
[313897334,1707783055983,-150.0,0.00031525,2]
[313897335,1707783055992,-150.0,0.00031533,2]